fUSD/lending_fUSD_20241116
["ID","MTS","AMOUNT","RATE_DAILY","PERIOD"]
[342350552,1731765041230,-3595.26,9.999e-05,2]
[342350553,1731765041240,-3595.26,9.999e-05,2]
[342350554,1731765041250,-3595.26,9.999e-05,2]
[342350555,1731765041260,-3595.26,9.999e-05,2]
[342350556,1731765041269,-3595.26,9.999e-05,2]
[342350557,1731765041278,-3595.26,9.999e-05,2]
[342350558,1731765041287,-3595.26,9.999e-05,2]
[342350559,1731765041296,-3595.26,9.999e-05,2]
[342350560,1731765041307,-3595.26,9.999e-05,2]
[342350561,1731765041316,-3595.26,9.999e-05,2]
[342350562,1731765041329,-3595.42962715,9.999e-05,2]
[342350563,1731765041339,-1278.31,9.999e-05,2]
[342350564,1731765041349,-1278.31,9.999e-05,2]
[342350565,1731765041358,-1278.31,9.999e-05,2]
[342350566,1731765041367,-1278.31,9.999e-05,2]
[342350567,1731765041376,-1278.31,9.999e-05,2]
[342350568,1731765041386,-1278.31,9.999e-05,2]
[342350569,1731765041395,-1278.31,9.999e-05,2]
[342350570,1731765041404,-1278.31,9.999e-05,2]
[342350571,1731765041413,-1278.31,9.999e-05,2]
[342350572,1731765041423,-1278.31,9.999e-05,2]
[342350573,1731765041434,-1278.31,9.999e-05,2]
[342350574,1731765041444,-1278.31,9.999e-05,2]
[342350575,1731765041453,-1278.31,9.999e-05,2]
[342350576,1731765041463,-1278.31,9.999e-05,2]
[342350577,1731765041472,-1278.31,9.999e-05,2]
[342350578,1731765041482,-1278.31,9.999e-05,2]
[342350579,1731765041493,-1278.31,9.999e-05,2]
[342350580,1731765041506,-1278.31,9.999e-05,2]
[342350581,1731765041515,-1278.49890923,9.999e-05,2]
[342350582,1731765041524,-496.03636396,9.999e-05,2]
[342350583,1731765041533,-500.0,9.999e-05,2]
[342350584,1731765041542,-413.47090568,9.999e-05,2]
[342350585,1731765041552,-2795.54,9.999e-05,2]
[342350586,1731765041562,-2795.54,9.999e-05,2]
[342350587,1731765041571,-2795.54,9.999e-05,2]
[342350588,1731765041582,-2795.54,9.999e-05,2]
[342350589,1731765041592,-2795.54,9.999e-05,2]
[342350590,1731765041601,-2795.54,9.999e-05,2]
[342350591,1731765041611,-2795.54,9.999e-05,2]
[342350592,1731765041620,-2795.54,9.999e-05,2]
[342350593,1731765041630,-2795.54,9.999e-05,2]
[342350594,1731765041639,-2795.54,9.999e-05,2]
[342350595,1731765041649,-2795.54,9.999e-05,2]
[342350596,1731765041658,-2795.54,9.999e-05,2]
[342350597,1731765041667,-2795.54,9.999e-05,2]
[342350598,1731765041676,-2795.54,9.999e-05,2]
[342350599,1731765041688,-2795.54,9.999e-05,2]
[342350600,1731765041697,-2795.54,9.999e-05,2]
[342350601,1731765041706,-2795.54,9.999e-05,2]
[342350602,1731765041715,-2795.65991484,9.999e-05,2]
[342350603,1731765041724,-500.0,9.999e-05,2]
[342350604,1731765041734,-500.0,9.999e-05,2]
[342350605,1731765041743,-500.0,9.999e-05,2]
[342350606,1731765041753,-422.34617962,9.999e-05,2]
[342350607,1731765041762,-500.0,9.999e-05,2]
[342350608,1731765041772,-500.0,9.999e-05,2]
[342350609,1731765041781,-500.0,9.999e-05,2]
[342350610,1731765041790,-500.0,9.999e-05,2]
[342350611,1731765041800,-500.0,9.999e-05,2]
[342350612,1731765041809,-500.0,9.999e-05,2]
[342350613,1731765041819,-500.0,9.999e-05,2]
[342350614,1731765041828,-500.0,9.999e-05,2]
[342350615,1731765041837,-500.0,9.999e-05,2]
[342350616,1731765041846,-500.0,9.999e-05,2]
[342350617,1731765041855,-153.38528852,9.999e-05,2]
[342350618,1731765041864,-609.69,9.999e-05,2]
[342350619,1731765041873,-609.69,9.999e-05,2]
[342350620,1731765041883,-609.69,9.999e-05,2]
[342350621,1731765041892,-609.69,9.999e-05,2]
[342350622,1731765041902,-609.69,9.999e-05,2]
[342350623,1731765041912,-609.69,9.999e-05,2]
[342350624,1731765041921,-609.69,9.999e-05,2]
[342350625,1731765041933,-609.69,9.999e-05,2]
[342350626,1731765041943,-609.69,9.999e-05,2]
[342350627,1731765041952,-609.69,9.999e-05,2]
[342350628,1731765041961,-609.69,9.999e-05,2]
[342350629,1731765041971,-609.69,9.999e-05,2]
[342350630,1731765041980,-609.69,9.999e-05,2]
[342350631,1731765041989,-609.69,9.999e-05,2]
[342350632,1731765041999,-609.69,9.999e-05,2]
[342350633,1731765042008,-609.69,9.999e-05,2]
[342350634,1731765042017,-609.69,9.999e-05,2]
[342350635,1731765042028,-609.69,9.999e-05,2]
[342350636,1731765042037,-609.84758075,9.999e-05,2]
[342350637,1731765042046,-500.0,9.999e-05,2]
[342350638,1731765042055,-500.0,9.999e-05,2]
[342350639,1731765042065,-500.0,9.999e-05,2]
[342350640,1731765042075,-511.26500207,9.999e-05,2]
[342350641,1731765042085,-500.0,9.999e-05,2]
[342350642,1731765042094,-500.0,9.999e-05,2]
[342350643,1731765042104,-500.0,9.999e-05,2]
[342350644,1731765042114,-500.0,9.999e-05,2]
[342350645,1731765042123,-500.0,9.999e-05,2]
[342350646,1731765042132,-500.0,9.999e-05,2]
[342350647,1731765042141,-500.0,9.999e-05,2]
[342350648,1731765042150,-500.0,9.999e-05,2]
[342350649,1731765042159,-423.18053109,9.999e-05,2]
[342350650,1731765042167,-500.0,9.999e-05,2]
[342350651,1731765042177,-404.63328355,9.999e-05,2]
[342350652,1731765042188,-500.0,9.999e-05,2]
[342350653,1731765042197,-500.0,9.999e-05,2]
[342350654,1731765042206,-500.0,9.999e-05,2]
[342350655,1731765042215,-500.0,9.999e-05,2]
[342350656,1731765042224,-500.0,9.999e-05,2]
[342350657,1731765042234,-500.0,9.999e-05,2]
[342350658,1731765042243,-500.0,9.999e-05,2]
[342350659,1731765042252,-274.67,9.999e-05,2]
[342350660,1731765042262,-500.0,9.999e-05,2]
[342350661,1731765042271,-500.0,9.999e-05,2]
[342350662,1731765042280,-500.0,9.999e-05,2]
[342350663,1731765042289,-1072.81,9.999e-05,2]
[342350664,1731765042298,-1072.81,9.999e-05,2]
[342350665,1731765042307,-1072.81,9.999e-05,2]
[342350666,1731765042316,-1072.81,9.999e-05,2]
[342350667,1731765042325,-1072.81,9.999e-05,2]
[342350668,1731765042334,-1072.81,9.999e-05,2]
[342350669,1731765042343,-1072.81,9.999e-05,2]
[342350670,1731765042352,-1072.81,9.999e-05,2]
[342350671,1731765042361,-1072.81,9.999e-05,2]
[342350672,1731765042371,-1072.81,9.999e-05,2]
[342350673,1731765042380,-1072.81,9.999e-05,2]
[342350674,1731765042389,-1072.81,9.999e-05,2]
[342350675,1731765042398,-1072.81,9.999e-05,2]
[342350676,1731765042407,-1072.81,9.999e-05,2]
[342350677,1731765042416,-1072.81,9.999e-05,2]
[342350678,1731765042426,-1072.81,9.999e-05,2]
[342350679,1731765042437,-1072.81,9.999e-05,2]
[342350680,1731765042447,-1072.81,9.999e-05,2]
[342350681,1731765042456,-1073.02,9.999e-05,2]
[342350682,1731765042465,-500.0,9.999e-05,2]
[342350683,1731765042474,-500.0,9.999e-05,2]
[342350684,1731765042483,-500.0,9.999e-05,2]
[342350685,1731765042492,-500.0,9.999e-05,2]
[342350686,1731765042503,-500.0,9.999e-05,2]
[342350687,1731765042512,-500.0,9.999e-05,2]
[342350688,1731765042521,-500.0,9.999e-05,2]
[342350689,1731765042531,-500.0,9.999e-05,2]
[342350690,1731765042539,-500.0,9.999e-05,2]
[342350691,1731765042548,-191.81935309,9.999e-05,2]
[342350692,1731765042557,-500.0,9.999e-05,2]
[342350693,1731765042566,-500.0,9.999e-05,2]
[342350694,1731765042575,-500.0,9.999e-05,2]
[342350695,1731765042584,-500.0,9.999e-05,2]
[342350696,1731765042593,-500.0,9.999e-05,2]
[342350697,1731765042603,-500.0,9.999e-05,2]
[342350698,1731765042613,-500.0,9.999e-05,2]
[342350699,1731765042622,-500.0,9.999e-05,2]
[342350700,1731765042631,-500.0,9.999e-05,2]
[342350701,1731765042641,-500.0,9.999e-05,2]
[342350702,1731765042651,-500.0,9.999e-05,2]
[342350703,1731765042661,-348.7066783,9.999e-05,2]
[342350704,1731765042670,-2951.39,9.999e-05,2]
[342350705,1731765042679,-2951.39,9.999e-05,2]
[342350706,1731765042866,-2951.39,9.999e-05,2]
[342350707,1731765042878,-2951.39,9.999e-05,2]
[342350708,1731765042888,-2951.39,9.999e-05,2]
[342350709,1731765042898,-2951.39,9.999e-05,2]
[342350710,1731765042908,-2951.39,9.999e-05,2]
[342350711,1731765042917,-2951.39,9.999e-05,2]
[342350712,1731765042927,-2951.39,9.999e-05,2]
[342350713,1731765042943,-2951.39,9.999e-05,2]
[342350714,1731765042952,-2951.39,9.999e-05,2]
[342350715,1731765042962,-2951.39,9.999e-05,2]
[342350716,1731765042972,-2951.39,9.999e-05,2]
[342350717,1731765042981,-2951.39,9.999e-05,2]
[342350718,1731765042991,-2951.39,9.999e-05,2]
[342350720,1731765043000,-2951.39,9.999e-05,2]
[342350721,1731765043010,-2951.39,9.999e-05,2]
[342350722,1731765043020,-2951.41,9.999e-05,2]
[342350723,1731765043030,-2025.04,9.999e-05,2]
[342350724,1731765043040,-2025.04,9.999e-05,2]
[342350725,1731765043050,-2025.04,9.999e-05,2]
[342350726,1731765043059,-2025.04,9.999e-05,2]
[342350728,1731765043068,-2025.04,9.999e-05,2]
[342350729,1731765043078,-2025.04,9.999e-05,2]
[342350730,1731765043087,-2025.04,9.999e-05,2]
[342350731,1731765043097,-2025.04,9.999e-05,2]
[342350732,1731765043106,-2025.04,9.999e-05,2]
[342350733,1731765043115,-2025.04,9.999e-05,2]
[342350734,1731765043125,-2025.04,9.999e-05,2]
[342350735,1731765043134,-2025.04,9.999e-05,2]
[342350736,1731765043144,-2025.04,9.999e-05,2]
[342350737,1731765043153,-2025.04,9.999e-05,2]
[342350738,1731765043162,-2025.04,9.999e-05,2]
[342350739,1731765043170,-2025.04,9.999e-05,2]
[342350740,1731765043179,-2025.04,9.999e-05,2]
[342350741,1731765043192,-2025.25,9.999e-05,2]
[342350743,1731765043202,-500.0,9.999e-05,2]
[342350744,1731765043211,-500.0,9.999e-05,2]
[342350745,1731765043220,-640.36688742,9.999e-05,2]
[342350746,1731765043229,-150.0,9.999e-05,2]
[342350747,1731765043239,-279.533,9.999e-05,2]
[342350748,1731765043248,-226.0,9.999e-05,2]
[342350749,1731765043256,-150.31,9.999e-05,2]
[342350750,1731765043265,-200.0,9.999e-05,2]
[342350751,1731765043274,-5010.33691795,0.0001,2]
[342350752,1731765043284,-237796.89450865,0.0001,2]
[342350753,1731765043293,-105667.98797154,0.0001,2]
[342350754,1731765043311,-55784.45541915,0.0001,2]
[342350755,1731765043322,-26972.75825232,0.0001,2]
[342350756,1731765043360,-499.63234404,9.994e-05,2]
[342350757,1731765043369,-3729.1022522,0.0001,2]
[342350758,1731765043380,-617.80000001,0.0001,2]
[342350759,1731765043391,-322.89916943,0.0001,2]
[342350760,1731765043410,-295.04003501,0.0001,2]
[342350761,1731765043421,-440.6531839,0.0001,2]
[342350762,1731765043517,-522568.41033517,0.0001,2]
[342350763,1731765043528,-1156.60503,0.0001,2]
[342350764,1731765043552,-346.176,0.0001,2]
[342350765,1731765043564,-4584.91800322,0.0001,2]
[342350766,1731765043575,-15046.03001648,0.0001,2]
[342350767,1731765043589,-19495.42291477,0.0001,2]
[342350768,1731765043601,-2310.96385219,0.0001,2]
[342350769,1731765043613,-364.21954485,0.0001,2]
[342350770,1731765043624,-6372.55540053,0.0001,2]
[342350771,1731765043635,-12770.29443766,0.0001,2]
[342350772,1731765043646,-5562.81205079,0.0001,2]
[342350773,1731765043658,-6299.55153439,0.0001,2]
[342350774,1731765043669,-16318.3306182,0.0001,2]
[342350776,1731765043684,-12707.66207911,0.0001,2]
[342350778,1731765043695,-735.915,0.0001,2]
[342350782,1731765046322,-11996.02313886,0.0001,2]
[342350783,1731765046334,-6612.8792186,0.0001,2]
[342350784,1731765046602,-534.8,0.0001,2]
[342350785,1731765046614,-980.31618991,0.0001,2]
[342350786,1731765046717,-436.79999989,0.0001,2]
[342350787,1731765046729,-4297.7,0.0001,2]
[342350790,1731765351839,151.385,0.0001,14]
[342350791,1731765381673,993.82,8.219e-05,2]
[342350792,1731765602657,485.26,9.973e-05,14]
[342350793,1731765602690,150.0,8.219e-05,2]
[342350794,1731765602849,150.0,8.219e-05,2]
[342350795,1731765603064,150.0,8.219e-05,2]
[342350796,1731765603302,150.0,8.219e-05,2]
[342350797,1731765603502,150.0,8.219e-05,2]
[342350798,1731765603715,150.0,8.219e-05,2]
[342350799,1731765603996,150.0,8.219e-05,2]
[342350800,1731765604137,150.0,8.219e-05,2]
[342350801,1731765604337,150.0,8.219e-05,2]
[342350802,1731765604579,150.0,8.219e-05,2]
[342350803,1731765604799,150.0,8.219e-05,2]
[342350804,1731765604989,150.0,8.219e-05,2]
[342350805,1731765605187,150.0,8.219e-05,2]
[342350806,1731765605380,150.0,8.219e-05,2]
[342350807,1731765605561,150.0,8.219e-05,2]
[342350808,1731765619287,150.0,8.219e-05,2]
[342350809,1731765619561,150.0,8.219e-05,2]
[342350810,1731765619820,150.0,8.219e-05,2]
[342350811,1731765620018,150.0,8.219e-05,2]
[342350812,1731765620449,273.01862231,8.219e-05,2]
[342350815,1731766026140,-652.44026595,8.89e-05,2]
[342350816,1731766042102,-152.80130668,8.89e-05,2]
[342350817,1731766059363,944.12,8.219e-05,2]
[342350818,1731766149096,-514.7,8.878e-05,2]
[342350819,1731766149118,-194.75842737,8.89e-05,2]
[342350820,1731766149139,-918.62,8.919e-05,2]
[342350821,1731766149161,-482.56,8.928e-05,2]
[342350822,1731766149183,-250.0,8.95e-05,2]
[342350823,1731766149204,-1069.36157263,8.96e-05,2]
[342350855,1731766231591,-162.49,8.934e-05,2]
[342350856,1731766231601,-223.24,8.943e-05,2]
[342350857,1731766231610,-228.48810073,8.96e-05,2]
[342350858,1731766231621,-27.70032664,8.96e-05,2]
[342350859,1731766231632,-14469.0,9.599e-05,2]
[342350860,1731766231641,-200.0,9.6e-05,2]
[342350861,1731766231652,-150.0,9.741e-05,2]
[342350862,1731766231662,-150.0,9.742e-05,2]
[342350863,1731766231672,-150.99,9.742e-05,2]
[342350864,1731766231682,-646.12,9.742e-05,2]
[342350865,1731766231691,-30259.04,9.742e-05,2]
[342350866,1731766231701,-150.0,9.787e-05,2]
[342350867,1731766231711,-150.0,9.787e-05,2]
[342350868,1731766231721,-34362.0041,9.797e-05,2]
[342350869,1731766231731,-1000.0,9.8e-05,2]
[342350870,1731766231740,-1267.44644336,9.8e-05,2]
[342350871,1731766231751,-45.23675664,9.8e-05,2]
[342350872,1731766231761,-33157.72233341,9.8e-05,2]
[342350873,1731766231784,-325.2239998,9.8e-05,2]
[342350874,1731766231795,-12528.14586679,9.8e-05,2]
[342350875,1731766231805,-21459.20732002,9.8e-05,2]
[342350876,1731766231814,-1128.67357434,9.8e-05,2]
[342350877,1731766231823,-1890.0059,9.8e-05,2]
[342350878,1731766231832,-150.0,9.804e-05,2]
[342350879,1731766231842,-150.0,9.805e-05,2]
[342350880,1731766231851,-563.0,9.821e-05,2]
[342350881,1731766231860,-150.0,9.828e-05,2]
[342350882,1731766231870,-500.0,9.899e-05,2]
[342350892,1731766232122,-500.0,9.899e-05,2]
[342350893,1731766232132,-580.62614466,9.899e-05,2]
[342350894,1731766232142,-245.88049841,9.899e-05,2]
[342350895,1731766232154,-2586.4,9.899e-05,2]
[342350896,1731766232163,-3105.93,9.899e-05,2]
[342350897,1731766232172,-2847.19,9.899e-05,2]
[342350898,1731766232182,-511.77500702,9.899e-05,2]
[342350899,1731766232191,-4264.21,9.899e-05,2]
[342350900,1731766232202,-504.66960777,9.899e-05,2]
[342350901,1731766232211,-500.0,9.899e-05,2]
[342350902,1731766232221,-1154.32,9.899e-05,2]
[342350903,1731766232230,-258.17959888,9.899e-05,2]
[342350904,1731766232240,-798.39,9.899e-05,2]
[342350905,1731766232250,-500.0,9.899e-05,2]
[342350906,1731766232259,-500.0,9.899e-05,2]
[342350907,1731766232271,-1057.42,9.899e-05,2]
[342350908,1731766232280,-500.0,9.899e-05,2]
[342350909,1731766232290,-500.0,9.899e-05,2]
[342350910,1731766232299,-500.0,9.899e-05,2]
[342350911,1731766232309,-868.05,9.899e-05,2]
[342350912,1731766232318,-500.0,9.899e-05,2]
[342350913,1731766232327,-595.6,9.899e-05,2]
[342350914,1731766232337,-29141.0,9.899e-05,2]
[342350915,1731766232346,-504.55437744,9.899e-05,2]
[342350916,1731766232356,-500.0,9.899e-05,2]
[342350917,1731766232365,-423.12,9.899e-05,2]
[342350918,1731766232375,-500.0,9.899e-05,2]
[342350919,1731766232385,-593.08,9.899e-05,2]
[342350920,1731766232396,-500.0,9.899e-05,2]
[342350921,1731766232406,-379.34386208,9.899e-05,2]
[342350922,1731766232416,-500.0,9.899e-05,2]
[342350923,1731766232426,-500.0,9.899e-05,2]
[342350924,1731766232436,-500.0,9.899e-05,2]
[342350925,1731766232445,-500.0,9.899e-05,2]
[342350926,1731766232454,-500.0,9.899e-05,2]
[342350927,1731766232464,-207.2327828,9.899e-05,2]
[342350928,1731766232473,-500.0,9.899e-05,2]
[342350929,1731766232483,-500.0,9.899e-05,2]
[342350930,1731766232493,-483.66,9.899e-05,2]
[342350931,1731766232503,-836.45,9.899e-05,2]
[342350932,1731766232512,-867.01,9.899e-05,2]
[342350933,1731766232522,-500.0,9.899e-05,2]
[342350934,1731766232531,-235.57360865,9.899e-05,2]
[342350935,1731766232540,-500.0,9.899e-05,2]
[342350936,1731766232550,-252.67463663,9.899e-05,2]
[342350937,1731766232559,-500.0,9.899e-05,2]
[342350938,1731766232569,-709.3,9.899e-05,2]
[342350939,1731766232578,-500.0,9.899e-05,2]
[342350940,1731766232588,-500.0,9.899e-05,2]
[342350941,1731766232597,-500.0,9.899e-05,2]
[342350942,1731766232607,-272.51,9.899e-05,2]
[342350943,1731766232616,-500.0,9.899e-05,2]
[342350944,1731766232626,-3003.89,9.899e-05,2]
[342350945,1731766232636,-500.0,9.899e-05,2]
[342350946,1731766232647,-500.0,9.899e-05,2]
[342350947,1731766232656,-500.0,9.899e-05,2]
[342350948,1731766232665,-500.0,9.899e-05,2]
[342350949,1731766232674,-500.0,9.899e-05,2]
[342350950,1731766232684,-3018.59,9.899e-05,2]
[342350951,1731766232693,-500.0,9.899e-05,2]
[342350952,1731766232703,-122610.3435,9.9e-05,2]
[342350953,1731766232712,-150.0,9.906e-05,2]
[342350954,1731766232721,-150.0,9.917e-05,2]
[342350955,1731766232731,-150.0,9.934e-05,2]
[342350956,1731766232741,-200.0,9.951e-05,2]
[342350957,1731766232751,-200.0,9.961e-05,2]
[342350958,1731766232761,-200.0,9.962e-05,2]
[342350959,1731766232771,-200.0,9.964e-05,2]
[342350960,1731766232780,-500.0,9.973e-05,2]
[342350961,1731766232789,-330.3390435,9.987e-05,2]
[342350962,1731766232799,-200.0,9.989e-05,2]
[342350963,1731766232807,-500.0,9.991e-05,2]
[342350964,1731766232817,-500.0,9.991e-05,2]
[342350965,1731766232826,-175201.49595486,9.992e-05,2]
[342350966,1731766232835,-330.3390435,9.993e-05,2]
[342350967,1731766232845,-330.3390435,9.993e-05,2]
[342350968,1731766232855,-330.3390435,9.993e-05,2]
[342350969,1731766232864,-500.0,9.993e-05,2]
[342350970,1731766232874,-500.0,9.993e-05,2]
[342350971,1731766232888,-500.0,9.993e-05,2]
[342350972,1731766232900,-500.0,9.993e-05,2]
[342350973,1731766232910,-500.0,9.993e-05,2]
[342350974,1731766232919,-500.0,9.993e-05,2]
[342350975,1731766232931,-500.0,9.994e-05,2]
[342350976,1731766232941,-500.0,9.994e-05,2]
[342350977,1731766232951,-2643.85,9.994e-05,2]
[342350978,1731766232962,-500.0,9.994e-05,2]
[342350979,1731766232971,-2586.4,9.994e-05,2]
[342350980,1731766232980,-3105.93,9.994e-05,2]
[342350981,1731766232990,-2847.19,9.994e-05,2]
[342350982,1731766233000,-4264.21,9.994e-05,2]
[342350983,1731766233009,-1154.32,9.994e-05,2]
[342350984,1731766233019,-500.0,9.994e-05,2]
[342350985,1731766233028,-647.20801698,9.994e-05,2]
[342350986,1731766233038,-500.77351435,9.994e-05,2]
[342350987,1731766233048,-798.39,9.994e-05,2]
[342350988,1731766233057,-512.70526672,9.994e-05,2]
[342350989,1731766233067,-500.0,9.994e-05,2]
[342350990,1731766233077,-500.0,9.994e-05,2]
[342350991,1731766233088,-1057.42,9.994e-05,2]
[342350992,1731766233098,-500.0,9.994e-05,2]
[342350993,1731766233108,-500.0,9.994e-05,2]
[342350994,1731766233118,-550.27,9.994e-05,2]
[342350995,1731766233128,-868.05,9.994e-05,2]
[342350996,1731766233141,-500.0,9.994e-05,2]
[342350997,1731766233153,-595.6,9.994e-05,2]
[342350998,1731766233163,-500.0,9.994e-05,2]
[342350999,1731766233174,-593.08,9.994e-05,2]
[342351000,1731766233185,-500.0,9.994e-05,2]
[342351001,1731766233196,-500.0,9.994e-05,2]
[342351002,1731766233206,-500.0,9.994e-05,2]
[342351003,1731766233216,-500.0,9.994e-05,2]
[342351004,1731766233227,-836.45,9.994e-05,2]
[342351005,1731766233238,-867.01,9.994e-05,2]
[342351006,1731766233248,-500.0,9.994e-05,2]
[342351007,1731766233259,-500.0,9.994e-05,2]
[342351008,1731766233269,-709.3,9.994e-05,2]
[342351009,1731766233279,-500.0,9.994e-05,2]
[342351010,1731766233289,-261.19803017,9.994e-05,2]
[342351011,1731766233299,-500.0,9.994e-05,2]
[342351012,1731766233310,-3003.89,9.994e-05,2]
[342351013,1731766233320,-500.0,9.994e-05,2]
[342351014,1731766233331,-3018.59,9.994e-05,2]
[342351015,1731766233341,-500.0,9.995e-05,2]
[342351016,1731766233351,-500.0,9.995e-05,2]
[342351017,1731766233360,-500.0,9.995e-05,2]
[342351018,1731766233370,-638.21431898,9.995e-05,2]
[342351019,1731766233380,-500.0,9.995e-05,2]
[342351020,1731766233390,-434.03144867,9.995e-05,2]
[342351021,1731766233401,-500.0,9.995e-05,2]
[342351022,1731766233410,-500.0,9.995e-05,2]
[342351023,1731766233420,-500.0,9.995e-05,2]
[342351024,1731766233430,-500.0,9.995e-05,2]
[342351025,1731766233440,-500.0,9.995e-05,2]
[342351026,1731766233450,-500.0,9.995e-05,2]
[342351027,1731766233460,-500.0,9.995e-05,2]
[342351028,1731766233471,-500.0,9.995e-05,2]
[342351029,1731766233481,-500.0,9.995e-05,2]
[342351030,1731766233491,-500.0,9.995e-05,2]
[342351031,1731766233501,-500.0,9.995e-05,2]
[342351032,1731766233511,-500.0,9.995e-05,2]
[342351033,1731766233521,-283.68022064,9.995e-05,2]
[342351034,1731766233531,-500.0,9.995e-05,2]
[342351035,1731766233541,-500.0,9.995e-05,2]
[342351036,1731766233551,-500.0,9.995e-05,2]
[342351037,1731766233560,-807.519,9.995e-05,2]
[342351038,1731766233570,-500.0,9.995e-05,2]
[342351039,1731766233580,-500.0,9.995e-05,2]
[342351040,1731766233590,-500.0,9.995e-05,2]
[342351041,1731766233600,-500.0,9.995e-05,2]
[342351042,1731766233610,-500.0,9.995e-05,2]
[342351043,1731766233619,-500.0,9.995e-05,2]
[342351044,1731766233629,-500.0,9.995e-05,2]
[342351045,1731766233639,-500.0,9.995e-05,2]
[342351046,1731766233652,-212.95034581,9.995e-05,2]
[342351047,1731766233662,-500.0,9.995e-05,2]
[342351048,1731766233672,-500.0,9.995e-05,2]
[342351049,1731766233682,-500.0,9.995e-05,2]
[342351050,1731766233692,-500.0,9.995e-05,2]
[342351051,1731766233702,-500.0,9.995e-05,2]
[342351052,1731766233712,-532.50477677,9.995e-05,2]
[342351053,1731766233722,-500.0,9.995e-05,2]
[342351054,1731766233732,-500.0,9.995e-05,2]
[342351055,1731766233742,-537.73301073,9.995e-05,2]
[342351056,1731766233751,-500.0,9.995e-05,2]
[342351057,1731766233762,-500.0,9.995e-05,2]
[342351058,1731766233771,-500.0,9.995e-05,2]
[342351059,1731766233781,-500.0,9.995e-05,2]
[342351060,1731766233790,-500.0,9.995e-05,2]
[342351061,1731766233800,-500.0,9.995e-05,2]
[342351062,1731766233809,-500.0,9.995e-05,2]
[342351063,1731766233818,-500.0,9.995e-05,2]
[342351064,1731766233828,-500.0,9.995e-05,2]
[342351065,1731766233837,-500.0,9.995e-05,2]
[342351066,1731766233847,-500.0,9.995e-05,2]
[342351067,1731766233856,-500.0,9.995e-05,2]
[342351068,1731766233866,-2643.85,9.995e-05,2]
[342351069,1731766233875,-5000.0,9.995e-05,2]
[342351070,1731766233889,-500.0,9.995e-05,2]
[342351071,1731766233901,-500.0,9.995e-05,2]
[342351072,1731766233911,-500.0,9.995e-05,2]
[342351073,1731766233920,-500.0,9.995e-05,2]
[342351074,1731766233931,-500.0,9.995e-05,2]
[342351075,1731766233942,-500.0,9.995e-05,2]
[342351076,1731766233951,-500.0,9.995e-05,2]
[342351077,1731766233961,-500.0,9.995e-05,2]
[342351078,1731766233970,-500.0,9.995e-05,2]
[342351079,1731766233980,-500.0,9.995e-05,2]
[342351080,1731766233990,-500.0,9.995e-05,2]
[342351081,1731766234000,-500.0,9.995e-05,2]
[342351082,1731766234010,-500.0,9.995e-05,2]
[342351083,1731766234020,-500.0,9.995e-05,2]
[342351084,1731766234029,-213.63700187,9.995e-05,2]
[342351085,1731766234039,-500.0,9.995e-05,2]
[342351086,1731766234048,-500.0,9.995e-05,2]
[342351087,1731766234058,-500.0,9.995e-05,2]
[342351088,1731766234067,-500.0,9.995e-05,2]
[342351089,1731766234077,-500.0,9.997e-05,2]
[342351090,1731766234086,-500.0,9.997e-05,2]
[342351091,1731766234095,-500.0,9.997e-05,2]
[342351092,1731766234106,-500.0,9.997e-05,2]
[342351093,1731766234116,-500.0,9.997e-05,2]
[342351094,1731766234125,-500.0,9.997e-05,2]
[342351095,1731766234135,-500.0,9.997e-05,2]
[342351096,1731766234147,-500.0,9.997e-05,2]
[342351097,1731766234157,-500.0,9.998e-05,2]
[342351098,1731766234167,-500.0,9.998e-05,2]
[342351099,1731766234176,-297.99145388,9.998e-05,2]
[342351100,1731766234187,-500.0,9.998e-05,2]
[342351101,1731766234196,-500.0,9.998e-05,2]
[342351102,1731766234205,-500.0,9.998e-05,2]
[342351103,1731766234215,-500.0,9.998e-05,2]